fUSD/lending_fUSD_20250506
["ID","MTS","AMOUNT","RATE_DAILY","PERIOD"]
[360143874,1746570641911,-450.0,0.00019792,2]
[360143875,1746570641921,-450.0,0.00019792,2]
[360143876,1746570641931,-1932.47,0.00019792,2]
[360143877,1746570641941,-2727.75,0.00019792,2]
[360143878,1746570641950,-450.0,0.00019792,2]
[360143879,1746570641960,-450.0,0.00019792,2]
[360143880,1746570641969,-3017.72,0.00019792,2]
[360143881,1746570641978,-450.0,0.00019792,2]
[360143882,1746570641987,-1179.04,0.00019792,2]
[360143883,1746570641996,-450.0,0.00019792,2]
[360143884,1746570642005,-450.0,0.00019792,2]
[360143885,1746570642015,-450.0,0.00019792,2]
[360143886,1746570642024,-4126.88,0.00019792,2]
[360143887,1746570642134,-1097.87,0.00019792,2]
[360143888,1746570642144,-450.0,0.00019792,2]
[360143889,1746570642154,-799.18,0.00019792,2]
[360143890,1746570642163,-495.54,0.00019792,2]
[360143891,1746570642173,-450.0,0.00019792,2]
[360143892,1746570642182,-1836.53,0.00019792,2]
[360143893,1746570642193,-450.0,0.00019792,2]
[360143894,1746570642203,-2660.25,0.00019792,2]
[360143895,1746570642215,-450.0,0.00019792,2]
[360143896,1746570642224,-905.62168293,0.00019792,2]
[360143897,1746570642267,-402.57831707,0.00019792,2]
[360143898,1746570642277,-226.65855345,0.00019792,2]
[360143899,1746570642288,-458.97597035,0.00019792,2]
[360143900,1746570642300,-75.7154762,0.00019792,2]
[360143901,1746570642309,-579.32173673,0.00019792,2]
[360143902,1746570642321,-478.685,0.00019792,2]
[360143903,1746570642337,-330.14326327,0.00019792,2]
[360143904,1746570642347,-450.0,0.00019792,2]
[360143905,1746570642362,-554.49692584,0.00019792,2]
[360143906,1746570642372,-450.0,0.00019792,2]
[360143907,1746570642382,-2128.04,0.00019792,2]
[360143908,1746570642393,-450.0,0.00019792,2]
[360143909,1746570642403,-450.0,0.00019792,2]
[360143910,1746570642413,-703.11981089,0.00019792,2]
[360143911,1746570642538,-75.19018911,0.00019792,2]
[360143912,1746570642548,-184.19798395,0.00019792,2]
[360143913,1746570642558,-191.8720556,0.00019792,2]
[360143914,1746570642567,-500.0,0.00019792,2]
[360143915,1746570642577,-172.25871017,0.00019792,2]
[360143916,1746570642587,-602.78621144,0.00019792,2]
[360143917,1746570642597,-226.74167693,0.00019792,2]
[360143918,1746570642610,-181.47762817,0.00019792,2]
[360143919,1746570642620,-500.0,0.00019792,2]
[360143920,1746570642630,-500.0,0.00019792,2]
[360143921,1746570642640,-500.0,0.00019792,2]
[360143922,1746570642650,-500.0,0.00019792,2]
[360143923,1746570642663,-500.0,0.00019792,2]
[360143925,1746570642672,-500.0,0.00019792,2]
[360143926,1746570642682,-500.0,0.00019792,2]
[360143928,1746570642691,-500.0,0.00019792,2]
[360143930,1746570642701,-500.0,0.00019792,2]
[360143932,1746570642711,-450.0,0.00019792,2]
[360143933,1746570642721,-583.86,0.00019792,2]
[360143935,1746570642731,-550.0,0.00019793,2]
[360143937,1746570642741,-550.0,0.00019793,2]
[360143939,1746570642750,-450.0,0.00019793,2]
[360143941,1746570642760,-513.91729763,0.00019793,2]
[360143943,1746570642769,-450.0,0.00019793,2]
[360143945,1746570642779,-450.80032787,0.00019793,2]
[360143947,1746570642789,-397.80578746,0.00019793,2]
[360143948,1746570642798,-529.69,0.00019793,2]
[360143951,1746570642809,-450.0,0.00019793,2]
[360143954,1746570642818,-450.0,0.00019793,2]
[360143956,1746570642828,-450.0,0.00019793,2]
[360143958,1746570642838,-450.0,0.00019793,2]
[360143960,1746570642848,-450.0,0.00019793,2]
[360143962,1746570642861,-450.0,0.00019793,2]
[360143964,1746570642871,-450.0,0.00019793,2]
[360143966,1746570642880,-450.0,0.00019793,2]
[360143968,1746570642890,-450.0,0.00019793,2]
[360143970,1746570642899,-450.0,0.00019793,2]
[360143972,1746570642909,-450.0,0.00019793,2]
[360143974,1746570642918,-450.0,0.00019793,2]
[360143976,1746570642928,-450.0,0.00019793,2]
[360143978,1746570642937,-450.0,0.00019793,2]
[360143980,1746570642946,-741.3,0.00019793,2]
[360143982,1746570642955,-450.0,0.00019793,2]
[360143984,1746570642964,-450.0,0.00019793,2]
[360143986,1746570642974,-450.0,0.00019793,2]
[360143988,1746570642983,-450.0,0.00019793,2]
[360143990,1746570642992,-450.0,0.00019793,2]
[360143991,1746570643002,-500.0,0.00019793,2]
[360143993,1746570643011,-450.0,0.00019793,2]
[360143995,1746570643021,-814.32,0.00019793,2]
[360143997,1746570643030,-450.0,0.00019793,2]
[360143999,1746570643039,-167.27007673,0.00019793,2]
[360144118,1746570643987,-282.72992327,0.00019793,2]
[360144120,1746570643996,-450.0,0.00019793,2]
[360144122,1746570644006,-263.39582604,0.00019793,2]
[360144124,1746570644016,-186.60417396,0.00019793,2]
[360144126,1746570644026,-450.0,0.00019793,2]
[360144128,1746570644035,-450.0,0.00019793,2]
[360144131,1746570644044,-450.0,0.00019793,2]
[360144132,1746570644053,-450.0,0.00019793,2]
[360144134,1746570644062,-450.0,0.00019793,2]
[360144137,1746570644071,-677.81,0.00019793,2]
[360144139,1746570644081,-152.00229817,0.00019793,2]
[360144140,1746570644090,-167.58352787,0.00019793,2]
[360144149,1746570644199,-282.41647213,0.00019793,2]
[360144150,1746570644208,-450.0,0.00019793,2]
[360144151,1746570644217,-648.66,0.00019793,2]
[360144152,1746570644226,-450.0,0.00019793,2]
[360144153,1746570644236,-161.79147802,0.00019793,2]
[360144154,1746570644251,-288.20852198,0.00019793,2]
[360144155,1746570644260,-247.05898265,0.00019793,2]
[360144156,1746570644276,-202.94101735,0.00019793,2]
[360144157,1746570644286,-550.0,0.00019793,2]
[360144159,1746570644295,-617.66,0.00019793,2]
[360144161,1746570644305,-450.0,0.00019793,2]
[360144163,1746570644314,-570.0,0.00019793,2]
[360144165,1746570644324,-450.0,0.00019793,2]
[360144167,1746570644333,-570.0,0.00019793,2]
[360144169,1746570644343,-450.0,0.00019793,2]
[360144171,1746570644355,-450.0,0.00019793,2]
[360144173,1746570644365,-681.28,0.00019793,2]
[360144175,1746570644374,-450.0,0.00019793,2]
[360144177,1746570644384,-450.0,0.00019793,2]
[360144179,1746570644393,-450.0,0.00019793,2]
[360144181,1746570644402,-450.0,0.00019793,2]
[360144183,1746570644411,-450.0,0.00019793,2]
[360144185,1746570644420,-154.92949595,0.00019793,2]
[360144187,1746570644429,-500.0,0.00019793,2]
[360144189,1746570644438,-450.0,0.00019793,2]
[360144190,1746570644449,-450.0,0.00019793,2]
[360144192,1746570644459,-450.0,0.00019793,2]
[360144194,1746570644468,-129.65697927,0.00019793,2]
[360144243,1746570644930,-320.34302073,0.00019793,2]
[360144245,1746570644939,-450.0,0.00019793,2]
[360144247,1746570644949,-150.0,0.00019793,2]
[360144249,1746570644958,-450.0,0.00019793,2]
[360144251,1746570644968,-450.0,0.00019793,2]
[360144253,1746570644977,-450.0,0.00019793,2]
[360144255,1746570644987,-450.0,0.00019793,2]
[360144257,1746570644997,-450.0,0.00019793,2]
[360144259,1746570645006,-450.0,0.00019793,2]
[360144261,1746570645016,-1344.7,0.00019793,2]
[360144263,1746570645026,-1452.63,0.00019793,2]
[360144265,1746570645036,-450.0,0.00019793,2]
[360144267,1746570645045,-1488.89,0.00019793,2]
[360144269,1746570645055,-450.0,0.00019793,2]
[360144271,1746570645065,-450.0,0.00019793,2]
[360144273,1746570645075,-450.0,0.00019793,2]
[360144275,1746570645085,-988.820089,0.00019793,2]
[360144277,1746570645095,-450.0,0.00019793,2]
[360144279,1746570645106,-1499.18,0.00019793,2]
[360144281,1746570645116,-1400.69612,0.00019793,2]
[360144283,1746570645126,-450.0,0.00019793,2]
[360144285,1746570645137,-538.7480729,0.00019793,2]
[360144287,1746570645147,-1277.16,0.00019793,2]
[360144289,1746570645157,-1932.47,0.00019793,2]
[360144291,1746570645167,-450.0,0.00019793,2]
[360144293,1746570645177,-1082.94,0.00019793,2]
[360144295,1746570645187,-1895.52,0.00019793,2]
[360144297,1746570645198,-450.0,0.00019793,2]
[360144299,1746570645208,-1029.32,0.00019793,2]
[360144301,1746570645217,-2727.75,0.00019793,2]
[360144303,1746570645227,-450.0,0.00019793,2]
[360144305,1746570645237,-450.0,0.00019793,2]
[360144307,1746570645246,-559.35975993,0.00019793,2]
[360144309,1746570645255,-450.0,0.00019793,2]
[360144311,1746570645265,-550.0,0.00019793,2]
[360144312,1746570645274,-450.0,0.00019793,2]
[360144313,1746570645284,-550.0,0.00019793,2]
[360144314,1746570645293,-223.63272047,0.00019793,2]
[360144315,1746570645302,-576.64,0.00019793,2]
[360144316,1746570645311,-450.0,0.00019793,2]
[360144317,1746570645321,-189.7327244,0.00019793,2]
[360144318,1746570645334,-2827.9872756,0.00019793,2]
[360144319,1746570645344,-554.76940089,0.00019793,2]
[360144320,1746570645355,-450.0,0.00019793,2]
[360144321,1746570645366,-450.0,0.00019793,2]
[360144322,1746570645376,-450.0,0.00019793,2]
[360144323,1746570645386,-397.69758956,0.00019793,2]
[360144324,1746570645396,-450.0,0.00019793,2]
[360144325,1746570645407,-1179.04,0.00019793,2]
[360144326,1746570645416,-1434.6,0.00019793,2]
[360144327,1746570645426,-1049.35,0.00019793,2]
[360144328,1746570645435,-528.12811078,0.00019793,2]
[360144329,1746570645445,-340.18912335,0.00019793,2]
[360144345,1746570646074,-109.81087665,0.00019793,2]
[360144346,1746570646084,-450.0,0.00019793,2]
[360144347,1746570646094,-450.0,0.00019793,2]
[360144348,1746570646104,-259.93855695,0.00019793,2]
[360144349,1746570646116,-190.06144305,0.00019793,2]
[360144350,1746570646125,-764.93855695,0.00019793,2]
[360144351,1746570646181,-406.12143745,0.00019758,2]
[360144352,1746570646190,-650.91527759,0.00019793,2]
[360144353,1746570646203,-689.3899408,0.00019793,2]
[360144354,1746570646337,-2021.63622466,0.00019793,2]
[360144355,1746570646346,-988.58466362,0.00019793,2]
[360144356,1746570646359,-109.28533638,0.00019793,2]
[360144357,1746570646368,-736.12,0.00019793,2]
[360144358,1746570646378,-1182.52,0.00019793,2]
[360144359,1746570646388,-2405.04,0.00019793,2]
[360144360,1746570646397,-450.0,0.00019793,2]
[360144361,1746570646407,-799.18,0.00019793,2]
[360144362,1746570646416,-2543.61,0.00019793,2]
[360144363,1746570646425,-450.0,0.00019793,2]
[360144364,1746570646435,-450.0,0.00019793,2]
[360144365,1746570646444,-773.5,0.00019793,2]
[360144366,1746570646454,-773.5,0.00019793,2]
[360144367,1746570646463,-495.54,0.00019793,2]
[360144368,1746570646473,-773.5,0.00019793,2]
[360144369,1746570646482,-294.39839046,0.00019793,2]
[360144370,1746570646492,-56.48943792,0.00019793,2]
[360144371,1746570687861,164.16,0.00018875,2]
[360144372,1746570700977,568.94,0.00018832,2]
[360144373,1746570747575,1158.94,0.0001883,2]
[360144374,1746570763968,1207.49,0.00018823,2]
[360144375,1746570810060,2751.0,0.00018804,2]
[360144376,1746570893214,1204.42,0.00016882,2]
[360144377,1746570893423,1204.42,0.00019146,2]
[360144378,1746570912320,215.43,0.000298,31]
[360144379,1746570912374,215.43,0.000298,31]
[360144380,1746570912423,215.43,0.000298,31]
[360144381,1746570912481,215.43,0.000298,31]
[360144382,1746570912543,215.43,0.000298,31]
[360144383,1746570912612,215.43,0.000298,31]
[360144384,1746570912660,215.43,0.000298,31]
[360144385,1746570912721,215.43,0.000298,31]
[360144386,1746570912784,215.43,0.000298,31]
[360144387,1746570912845,215.43,0.000298,31]
[360144388,1746570912903,215.43,0.000298,31]
[360144389,1746570913139,215.43,0.000298,31]
[360144390,1746570913185,215.43,0.000298,31]
[360144391,1746570913224,215.43,0.000298,31]
[360144392,1746570913273,215.43,0.000298,31]
[360144393,1746570913316,215.43,0.000298,31]
[360144394,1746570929342,2468.08,0.00018795,2]
[360144395,1746570933167,1500.0,0.00019178,2]
[360144396,1746570956015,11211.08,0.0001879,2]
[360144397,1746570961147,250.0,0.00018875,2]
[360144398,1746570990532,693.32439234,0.0003,30]
[360144399,1746571045321,173.77,0.00019178,2]
[360144400,1746571051467,427.08,0.00018773,2]
[360144401,1746571151546,500.0,0.0003,30]
[360144402,1746571152739,500.0,0.0003,30]
[360144403,1746571156078,500.0,0.0003,30]
[360144404,1746571166332,1517.99,0.00018765,2]
[360144405,1746571272030,19387.1,0.00018778,2]
[360144406,1746571294225,161.11,0.00019347,2]
[360144407,1746571437079,500.0,0.0001873,3]
[360144408,1746571460838,1000.0,0.00018733,2]
[360144409,1746571466248,23900.0,0.0001873,2]
[360144410,1746571488738,278.23,0.00018733,2]
[360144411,1746571498046,2597.8494458,0.00030137,120]
[360144412,1746571524758,180.98,0.000298,31]
[360144413,1746571524820,180.98,0.000298,31]
[360144414,1746571524924,180.98,0.000298,31]
[360144415,1746571525038,180.98,0.000298,31]
[360144416,1746571525106,180.98,0.000298,31]
[360144417,1746571525514,180.98,0.000298,31]
[360144418,1746571525575,180.98,0.000298,31]
[360144419,1746571525631,180.98,0.000298,31]
[360144420,1746571525675,180.98,0.000298,31]
[360144421,1746571525875,180.98,0.000298,31]
[360144422,1746571525927,180.98,0.000298,31]
[360144423,1746571525974,180.98,0.000298,31]
[360144424,1746571526023,180.98,0.000298,31]
[360144425,1746571526076,180.98,0.000298,31]
[360144426,1746571526124,180.98,0.000298,31]
[360144427,1746571526173,180.98,0.000298,31]
[360144428,1746571545155,158.42949,0.000246,33]
[360144429,1746571545256,158.42949,0.000271,39]
[360144430,1746571545287,4000.0,0.00018732,2]
[360144431,1746571545414,158.4295,0.000296,44]
[360144432,1746571546508,150.0,0.00017803,2]
[360144433,1746571546574,150.0,0.00017919,2]
[360144434,1746571546616,150.0,0.00018035,2]
[360144435,1746571546765,150.0,0.00018152,2]
[360144436,1746571546798,150.0,0.00018268,2]
[360144437,1746571546835,150.0,0.00018501,2]
[360144438,1746571546877,150.0,0.00018385,2]
[360144439,1746571546913,150.0,0.00018617,2]
[360144440,1746571546974,150.0,0.00018734,2]
[360144441,1746571547005,150.0,0.0001885,2]
[360144442,1746571547063,150.0,0.00018966,2]
[360144443,1746571547132,150.0,0.00019083,2]
[360144444,1746571547205,150.0,0.00019199,4]
[360144445,1746571547270,150.0,0.00019315,4]
[360144446,1746571547342,150.0,0.00019432,4]
[360144447,1746571600310,156.0,0.00013699,2]
[360144448,1746571600655,156.0,0.00013699,2]
[360144449,1746571601072,156.0,0.00013699,2]
[360144450,1746571601770,156.0,0.00013699,2]
[360144451,1746571602370,156.0,0.00013699,2]
[360144452,1746571602983,156.0,0.00013699,2]
[360144453,1746571603468,156.0,0.00013699,2]
[360144454,1746571603907,156.0,0.00013699,2]
[360144455,1746571604627,156.0,0.00013699,2]
[360144456,1746571605043,156.0,0.00013699,2]
[360144457,1746571605728,156.0,0.00013699,2]
[360144458,1746571606411,156.0,0.00013699,2]
[360144459,1746571607002,1136.42931132,0.0003,30]
[360144460,1746571607117,156.0,0.00013699,2]
[360144461,1746571607797,156.0,0.00013699,2]
[360144462,1746571608222,156.0,0.00013699,2]
[360144463,1746571608710,156.0,0.00013699,2]
[360144464,1746571609539,156.0,0.00013699,2]
[360144465,1746571609711,156.0,0.00013699,2]
[360144466,1746571610419,156.0,0.00013699,2]
[360144467,1746571611364,156.07153851,0.00013699,2]
[360144468,1746571654816,200.0,0.00018722,2]
[360144469,1746571755684,153.6,0.00018721,2]
[360144470,1746571756248,153.6,0.00028082,120]
[360144474,1746571831939,-150.0,0.00019548,4]
[360144475,1746571831948,-250.0,0.00019553,2]
[360144476,1746571831958,-198.39857638,0.00019557,2]
[360144477,1746571831968,-158.42949,0.000196,23]
[360144478,1746571831977,-198.39857637,0.00019626,2]
[360144479,1746571831987,-173.3936,0.00019656,2]
[360144480,1746571831996,-300.0,0.00019656,2]
[360144481,1746571832006,-471.37974725,0.00019656,2]
[360144482,1746571832063,-728.62025275,0.00019656,2]
[360144483,1746571832074,-438.52622093,0.00019657,2]
[360144484,1746571832086,-600.88592764,0.00019657,2]
[360144485,1746571832111,-1460.58785143,0.00019657,2]
[360144486,1746571832120,-447.40394715,0.00019657,2]
[360144487,1746571832131,-155.79975333,0.00019657,2]
[360144488,1746571832213,-6381.81454951,0.00019657,2]
[360144489,1746571832223,-566.25819795,0.00019658,2]
[360144490,1746571832233,-204.14576702,0.00019658,2]
[360144491,1746571832242,-6537.61430283,0.00019661,2]
[360144493,1746571832251,-150.0,0.00019664,4]
[360144495,1746571832261,-6537.61430283,0.00019665,2]
[360144497,1746571832270,-6537.61430283,0.0001967,2]
[360144499,1746571832280,-500.0,0.00019673,2]
[360144500,1746571832289,-6537.61430283,0.00019674,2]
[360144501,1746571832299,-6537.61430283,0.00019678,2]
[360144502,1746571832308,-7448.45997137,0.00019682,2]
[360144503,1746571832326,-1512.02655347,0.00019682,2]
[360144504,1746571832335,-881.79610708,0.00019682,2]
[360144558,1746571838330,-2428.61955236,0.00019682,2]
[360144559,1746571838425,-3227.19864339,0.00019682,2]
[360144560,1746571838435,-391.00135661,0.00019687,2]
[360144561,1746571838446,-2930.59101127,0.00019687,2]
[360144562,1746571838914,-879.20342316,0.00019687,2]
[360144563,1746571838926,-1156.71180127,0.00019687,2]
[360144564,1746571838937,-398.78671313,0.00019687,2]
[360144574,1746571840300,-781.31999739,0.00019687,2]
[360144575,1746571840310,-402.48513892,0.00019689,2]
[360144576,1746571840320,-592.52520126,0.00019689,2]
[360144577,1746571840334,-6537.61430283,0.00019691,2]
[360144578,1746571840344,-507.0595,0.00019693,2]
[360144579,1746571840355,-282.0306047,0.00019693,3]
[360144580,1746571840365,-3483.30484244,0.00019693,2]
[360144581,1746571840375,-1523.3329427,0.00019693,2]
[360144582,1746571840384,-6537.61430283,0.00019695,2]
[360144583,1746571840394,-1000.0,0.000197,2]
[360144584,1746571840404,-2759.64638373,0.00019703,2]
[360144585,1746571840414,-613.58854279,0.00019726,2]
[360144586,1746571840423,-8960.48652484,0.00019736,2]
[360144587,1746571840433,-151.0,0.00019746,2]
[360144588,1746571840443,-151.0,0.00019746,2]
[360144589,1746571840452,-155.0,0.00019746,2]
[360144590,1746571840462,-151.0,0.00019746,2]
[360144591,1746571840471,-151.0,0.00019746,2]
[360144592,1746571840480,-207.4,0.00019746,2]
[360144593,1746571840490,-668.65185757,0.00019746,2]
[360144594,1746571840499,-2484.12,0.00019747,2]
[360144595,1746571840509,-358.31792443,0.00019748,2]
[360144596,1746571840519,-500.0,0.00019749,2]
[360144597,1746571840529,-500.0,0.00019749,2]
[360144598,1746571840539,-590.89481366,0.00019749,2]
[360144599,1746571840548,-500.0,0.00019749,2]
[360144600,1746571840558,-500.0,0.00019749,2]
[360144601,1746571840567,-310.41351274,0.00019749,2]
[360144602,1746571840578,-590.89481366,0.00019749,2]
[360144603,1746571840588,-500.0,0.00019749,2]
[360144604,1746571840597,-590.89481366,0.00019749,2]
[360144605,1746571840606,-500.0,0.00019749,2]
[360144606,1746571840616,-590.89481366,0.00019749,2]
[360144607,1746571840625,-500.0,0.00019749,2]
[360144608,1746571840636,-590.89481366,0.00019749,2]
[360144609,1746571840657,-194.52040641,0.00019749,2]
[360144610,1746571840667,-590.89481366,0.00019749,2]
[360144611,1746571840676,-500.0,0.00019749,2]
[360144612,1746571840686,-590.89481366,0.00019749,2]
[360144613,1746571840695,-590.89481366,0.00019749,2]
[360144614,1746571840705,-590.89481366,0.00019749,2]
[360144615,1746571840714,-590.89481366,0.00019749,2]
[360144616,1746571840723,-590.89481366,0.00019749,2]
[360144617,1746571840734,-590.89481366,0.00019749,2]
[360144618,1746571840743,-590.89481366,0.00019749,2]
[360144619,1746571840753,-590.89481366,0.00019749,2]
[360144620,1746571840762,-590.89481366,0.00019749,2]
[360144621,1746571840771,-590.89481366,0.00019749,2]
[360144623,1746571840780,-590.89481366,0.00019749,2]
[360144625,1746571840789,-590.89481366,0.00019749,2]
[360144627,1746571840798,-590.89481366,0.00019749,2]
[360144629,1746571840808,-590.89481366,0.00019749,2]
[360144631,1746571840817,-590.89481366,0.00019749,2]
[360144633,1746571840828,-590.89481366,0.00019749,2]
[360144635,1746571840838,-590.89481366,0.00019749,2]
[360144637,1746571840847,-590.89481366,0.00019749,2]
[360144639,1746571840856,-590.89481366,0.00019749,2]
[360144641,1746571840866,-590.89481366,0.00019749,2]
[360144643,1746571840876,-590.89481366,0.00019749,2]
[360144645,1746571840885,-590.89481366,0.00019749,2]
[360144647,1746571840894,-590.89481366,0.00019749,2]
[360144649,1746571840903,-590.89481366,0.00019749,2]
[360144650,1746571840912,-590.89481366,0.00019749,2]
[360144651,1746571840922,-590.89481366,0.00019749,2]
[360144652,1746571840931,-590.89481366,0.00019749,2]
[360144653,1746571840940,-590.89481366,0.00019749,2]
[360144654,1746571840949,-590.89481366,0.00019749,2]
[360144655,1746571840958,-590.89481366,0.00019749,2]
[360144656,1746571840968,-590.89481366,0.00019749,2]
[360144657,1746571840977,-590.89481366,0.00019749,2]
[360144658,1746571840986,-590.89481366,0.00019749,2]
[360144659,1746571840995,-590.89481366,0.00019749,2]
[360144660,1746571841004,-590.89481366,0.00019749,2]
[360144661,1746571841013,-590.89481366,0.00019749,2]
[360144662,1746571841022,-590.89481366,0.00019749,2]
[360144663,1746571841031,-590.89481366,0.00019749,2]
[360144664,1746571841040,-590.89481366,0.00019749,2]
[360144665,1746571841049,-990.2825324,0.00019749,2]
[360144666,1746571841060,-990.2825324,0.00019749,2]
[360144667,1746571841069,-990.2825324,0.00019749,2]
[360144668,1746571841081,-990.2825324,0.00019749,2]
[360144669,1746571841091,-990.2825324,0.00019749,2]
[360144670,1746571841100,-990.2825324,0.00019749,2]
[360144671,1746571841109,-990.2825324,0.00019749,2]
[360144672,1746571841118,-990.2825324,0.00019749,2]
[360144673,1746571841127,-990.2825324,0.00019749,2]
[360144674,1746571841136,-990.2825324,0.00019749,2]
[360144675,1746571841145,-990.2825324,0.00019749,2]
[360144676,1746571841154,-990.2825324,0.00019749,2]
[360144677,1746571841163,-990.2825324,0.00019749,2]
[360144678,1746571841172,-990.2825324,0.00019749,2]
[360144679,1746571841181,-990.2825324,0.00019749,2]
[360144680,1746571841191,-990.2825324,0.00019749,2]
[360144681,1746571841200,-990.2825324,0.00019749,2]
[360144682,1746571841209,-990.2825324,0.00019749,2]
[360144683,1746571841218,-990.2825324,0.00019749,2]
[360144684,1746571841227,-990.2825324,0.00019749,2]
[360144685,1746571841237,-990.2825324,0.00019749,2]
[360144686,1746571841246,-990.2825324,0.00019749,2]
[360144687,1746571841256,-990.2825324,0.00019749,2]
[360144688,1746571841265,-990.2825324,0.00019749,2]
[360144689,1746571841274,-990.2825324,0.00019749,2]
[360144690,1746571841283,-990.2825324,0.00019749,2]
[360144691,1746571841293,-990.2825324,0.00019749,2]
[360144692,1746571841302,-990.2825324,0.00019749,2]
[360144693,1746571841311,-990.2825324,0.00019749,2]
[360144694,1746571841320,-990.2825324,0.00019749,2]
[360144695,1746571841332,-987.05815625,0.00019749,2]
[360144696,1746571841341,-987.05815625,0.00019749,2]
[360144697,1746571841350,-987.05815625,0.00019749,2]
[360144698,1746571841359,-987.05815625,0.00019749,2]
[360144699,1746571841368,-987.05815625,0.00019749,2]
[360144700,1746571841377,-987.05815625,0.00019749,2]
[360144701,1746571841387,-987.05815625,0.00019749,2]
[360144702,1746571841396,-987.05815625,0.00019749,2]
[360144703,1746571841406,-987.05815625,0.00019749,2]
[360144704,1746571841525,-987.05815625,0.00019749,2]
[360144705,1746571841536,-987.05815625,0.00019749,2]
[360144706,1746571841545,-987.05815625,0.00019749,2]
[360144707,1746571841554,-987.05815625,0.00019749,2]
[360144708,1746571841563,-987.05815625,0.00019749,2]
[360144709,1746571841575,-450.0,0.00019756,2]
[360144710,1746571841584,-450.0,0.00019756,2]
[360144711,1746571841593,-450.0,0.00019756,2]
[360144712,1746571841603,-450.0,0.00019756,2]
[360144713,1746571841613,-450.0,0.00019756,2]
[360144714,1746571841622,-450.0,0.00019756,2]
[360144715,1746571841634,-450.0,0.00019756,2]
[360144716,1746571841643,-470.0,0.00019756,2]
[360144717,1746571841653,-450.0,0.00019756,2]
[360144718,1746571841663,-470.0,0.00019756,2]
[360144719,1746571841672,-450.0,0.00019756,2]
[360144720,1746571841682,-450.0,0.00019756,2]
[360144721,1746571841691,-450.0,0.00019756,2]
[360144722,1746571841701,-450.0,0.00019756,2]
[360144723,1746571841712,-450.0,0.00019756,2]
[360144724,1746571841721,-450.0,0.00019756,2]
[360144725,1746571841730,-512.01178802,0.00019756,2]
[360144726,1746571841739,-450.0,0.00019756,2]
[360144727,1746571841749,-450.0,0.00019756,2]
[360144728,1746571841758,-450.0,0.00019756,2]
[360144729,1746571841767,-450.19307129,0.00019756,2]
[360144730,1746571841777,-450.0,0.00019756,2]
[360144731,1746571841786,-450.0,0.00019756,2]
[360144732,1746571841795,-450.0,0.00019756,2]
[360144733,1746571841806,-450.0,0.00019756,2]
[360144734,1746571841815,-277.53859771,0.00019756,2]
[360144735,1746571841825,-450.0,0.00019756,2]
[360144736,1746571841835,-450.0,0.00019756,2]
[360144737,1746571841845,-227.05548902,0.00019756,2]
[360144738,1746571841855,-450.0,0.00019756,2]
[360144739,1746571841865,-450.0,0.00019756,2]
[360144740,1746571841874,-450.0,0.00019756,2]
[360144741,1746571841884,-181.26618818,0.00019756,2]
[360144742,1746571841893,-382.0858766,0.00019756,2]
[360144743,1746571841903,-450.0,0.00019756,2]
[360144744,1746571841912,-450.0,0.00019756,2]
[360144745,1746571841922,-450.0,0.00019756,2]